Cogmind - Beta 17 @@@ ROGUE MODE // 2026.07.07 @ 22:46:09 Player: Zish Result: Destroyed by 5R-MKZ(j) with Overtuned Pulse Rifle Performance ------------- Evolutions (0) 0 Regions Visited (4) 800 Robots Destroyed (28) 140 Value Destroyed (707) 707 Prototype IDs (0) 0 Alien Tech Used (0) 0 Bonus (897) 897 TOTAL SCORE: 2544 Bonus ------- Follower Combat Kills 97 Registered with UFD 300 Met Optimus in HQ 500 Cogmind --------- Core Integrity 0/250 Matter 300/300 Energy 100/100 System Corruption 1% Temperature Cool (12) Movement Treading (325) Ox2 Location -8/Scraptown Parts ------- > --- POWER (1) -------- (None) > --- PROPULSION (2) --- Light Treads Armored Treads > --- UTILITY (2) ------ Huge Storage Unit Hacking Suite > --- WEAPON (2) ------- Overtuned Barrage Gun Hammer > --- INVENTORY (25) --- Light Nuclear Core Light Treads Overtuned Treads Overtuned Treads Overtuned Treads VTOL Module VTOL Module VTOL Module VTOL Module Humpback Hacking Suite Makeshift Hacking Suite Makeshift Hacking Suite Makeshift Hacking Suite Autogun Autogun EMP Blaster Grenade Launcher Subdweller Shrapnel Launcher Datajack CPS Tube (2) Peak State ------------ > --- POWER ------------ Light Ion Engine > --- PROPULSION ------- Light Treads Armored Treads > --- UTILITY ---------- Huge Storage Unit Hacking Suite > --- WEAPON ----------- Overtuned Barrage Gun Hammer > --- INVENTORY -------- Light Nuclear Core Light Treads Overtuned Treads Overtuned Treads Overtuned Treads VTOL Module VTOL Module VTOL Module VTOL Module Humpback Hacking Suite Makeshift Hacking Suite Makeshift Hacking Suite Makeshift Hacking Suite Autogun Autogun EMP Blaster Grenade Launcher Subdweller Shrapnel Launcher Datajack CPS Tube [Rating: 18] Favorites ----------- Power Ion Engine Engine Ion Engine Propulsion Light Treads Treads Light Treads Utility Hacking Suite Device ECM Suite Storage Huge Storage Unit Hackware Hacking Suite Weapon Autogun Energy Gun Overtuned Pulse Rifle Ballistic Gun Autogun Launcher Subdweller Shrapnel Launcher Impact Weapon Hammer Build | -11 -10 -10 -10 -8 ------- Run | Yrd Mat Min Sub Scr Slots Evolved . | . . . . . Power . | . . . . . Propulsion . | . . . . . Utility . | . . . . . Weapon . | . . . . . Parts Attached 22 | 6 9 . 1 6 Power 4 | 1 1 . . 2 Engine 4 | 1 1 . . 2 Core . | . . . . . Reactor . | . . . . . Propulsion 5 | 2 1 . . 2 Treads 5 | 2 1 . . 2 Leg . | . . . . . Wheel . | . . . . . Hover . | . . . . . Flight . | . . . . . Utility 5 | 1 4 . . . Device 1 | . 1 . . . Storage 3 | 1 2 . . . Processor . | . . . . . Hackware 1 | . 1 . . . Protection . | . . . . . Artifact . | . . . . . Weapon 8 | 2 3 . 1 2 Energy Gun 1 | . . . . 1 Energy Cannon . | . . . . . Ballistic Gun 5 | 2 2 . . 1 Ballistic Cannon . | . . . . . Launcher 1 | . . . 1 . Special Weapon . | . . . . . Impact Weapon 1 | . 1 . . . Slashing Weapon . | . . . . . Piercing Weapon . | . . . . . Special Melee Weapon . | . . . . . Unidentified Prototypes . | . . . . . Parts Lost 8 | . 3 . . 5 Power 4 | . 1 . . 3 Propulsion 3 | . 1 . . 2 Utility 1 | . 1 . . . Weapon . | . . . . . Highest Loss Streak 2 | . 2 . . 2 To Critical Strikes . | . . . . . Average Backups 13 | . 8 13 14 17 Power 2 | . 1 3 3 2 Propulsion 5 | . 5 6 6 6 Utility 1 | . . 1 1 2 Weapon 2 | . . 2 3 4 Tool/Special . | . . . . . Unused Backups 20 | . 1 . . 19 Power 1 | . . . . 1 Propulsion 8 | . . . . 8 Utility 6 | . 1 . . 5 Weapon 3 | . . . . 3 Tool/Special 2 | . . . . 2 Average Slot Usage (%) 97 | . 94 100 99 99 Engine 13 | . 14 14 14 13 Treads 27 | . 25 28 28 27 Device 1 | . 4 . . . Storage 14 | . 14 14 14 14 Hackware 11 | . 6 14 14 14 Energy Gun 1 | . . . . 2 Ballistic Gun 13 | . 26 14 8 2 Launcher 4 | . . . 5 8 Impact Weapon 9 | . 1 14 14 14 Peak Build Rating 18 | 6 12 12 12 18 Average Rating 12 | 4 9 12 11 14 On Entrance 8 | . 6 12 12 12 Avg Prop Armor Cover (%) . | . . . . . Naked Turns . | . . . . . Heaviest Build 95 | 13 91 90 95 95 Greatest Support 40 | 40 40 40 40 40 Greatest Overweight (x) 4 | 4 4 2 2 4 Average Overweight (x) 1 | . . 2 2 2 Largest Inventory Capacity 25 | 8 25 25 25 25 Average Capacity 21 | 7 17 25 25 25 Most Carried 22 | 1 15 13 15 22 Average Carried 13 | . 8 13 13 18 Final Capacity 25 | 8 25 25 25 25 Final Carried 22 | 1 13 13 15 22 Class Distribution -------------------- 100% | Mutant Dominant Class ---------------- Mutant | -10/Materials Mutant | -10/Mines Mutant | -10/Subcaves Mutant | -8/Scraptown Resources | -11 -10 -10 -10 -8 ----------- Run | Yrd Mat Min Sub Scr Matter Collected 1050 | 191 586 43 114 116 Remotely . | . . . . . Salvage Created 1076 | . 846 . 42 188 Parts 66 | . 58 . . 8 Haulers Intercepted 1 | . 1 . . . Recyclers Shooed 1 | . 1 . . . Parts Field Recycled . | . . . . . Retrieved Matter . | . . . . . Parts Self-Destructed 4 | . . . 4 . Prevented . | . . . . . Parts Restored . | . . . . . Kills | -11 -10 -10 -10 -8 ------- Run | Yrd Mat Min Sub Scr Combat Hostiles Destroyed 15 | . 12 . . 3 Melee 1 | . . . . 1 Guns 14 | . 12 . . 2 Classes Destroyed 9 | . 7 . . 2 Worker 1 | . 1 . . . Builder 4 | . 4 . . . Hauler 1 | . 1 . . . Recycler 1 | . 1 . . . Operator 2 | . 2 . . . Watcher 3 | . 3 . . . Grunt 13 | . 12 . 1 . Explorer 1 | . . . . 1 Scrapper 2 | . . . . 2 Best Kill Streak 4 | . 4 . . 1 Combat Bots Only 2 | . 2 . . 1 Max Kills in Single Turn 1 | . 1 . 1 1 Gunslinging . | . . . . . Exploded . | . . . . . Melee 1 | . . . . 1 Uniques/NPCs Destroyed . | . . . . . Combat | -11 -10 -10 -10 -8 -------- Run | Yrd Mat Min Sub Scr Hostile Shots Fired 119 | . 60 6 5 48 Missed 26 | . 12 4 . 10 Hits 93 | . 48 2 5 38 Melee 4 | . . . . 4 Projectile 89 | . 48 2 5 34 Critical Strikes 3 | . . . . 3 Part Disruptions 1 | . . . . 1 Damage Taken 1549 | . 622 16 147 764 Core 262 | . 83 8 23 148 Absorbed by Shields . | . . . . . Core Remaining (%) 100 | 100 . . . . Volleys Fired 103 | . 82 2 5 14 Largest 2 | . 2 1 1 1 Hottest 80 | . 46 23 23 80 Shots Fired 184 | . 164 2 5 13 Gun 184 | . 164 2 5 13 Cannon . | . . . . . Launcher . | . . . . . Special . | . . . . . Kinetic 178 | . 164 2 5 7 Thermal 6 | . . . . 6 Explosive . | . . . . . Electromagnetic . | . . . . . Robot Hit Streak 9 | . 9 4 3 5 Robot Miss Streak 4 | . 4 1 1 2 Penetration Max . | . . . . . Secondary Targets 1 | . 1 . . . Max Gunslinging Chain 1 | . 1 . . . Shots Hit Robots 118 | . 100 1 5 12 Core Hits 48 | . 41 . 2 5 Critical Kills 1 | . . . . 1 Critical Parts Destroyed 3 | . . . 1 2 Critical Strikes 4 | . . . 1 3 Destroy 1 | . . . . 1 Smash 3 | . . . 1 2 Melee Attacks 16 | . . . 12 4 Impact 16 | . . . 12 4 Slashing . | . . . . . Piercing . | . . . . . Sneak Attacks 1 | . . . 1 . Combat Hostiles . | . . . . . Follow-up Attacks . | . . . . . Damage Inflicted 1689 | . 1380 16 105 188 Guns 1640 | . 1380 16 75 169 Cannons . | . . . . . Explosions . | . . . . . Melee 49 | . . . 30 19 Ramming . | . . . . . Kinetic 1556 | . 1380 16 75 85 Thermal 84 | . . . . 84 Explosive . | . . . . . Electromagnetic . | . . . . . Impact 49 | . . . 30 19 Slashing . | . . . . . Piercing . | . . . . . Highest Corruption 1 | . . . . 1 Average Corruption 1 | . . . . 1 Corruption Purged . | . . . . . Corruption Blocked . | . . . . . Effects 6 | . . . . 6 Message Errors 1 | . . . . 1 Matter Fused 2 | . . . . 2 Heat Flow Errors 1 | . . . . 1 Data Loss (major) 1 | . . . . 1 Alerts 1 | . . . . 1 Overload Shots . | . . . . . Overflow Damage 39 | . . . 30 9 Projectiles . | . . . . . Explosions . | . . . . . Melee 39 | . . . 30 9 Knockbacks . | . . . . . Impact . | . . . . . Kinetic . | . . . . . Secondary . | . . . . . Self-Inflicted Damage . | . . . . . Shots . | . . . . . Rammed . | . . . . . Targets Rammed . | . . . . . Kicked . | . . . . . Crushed . | . . . . . Highest Temperature 260 | . 36 3 . 260 Average Temperature 28 | . 9 3 . 84 Received Heat Transfer 700 | . 351 . 48 301 Siege Activations . | . . . . . Martial Activations . | . . . . . Shielding Activations . | . . . . . Robots Disrupted . | . . . . . Combat Hostiles . | . . . . . Robots Corrupted 1 | . . . 1 . Combat Hostiles . | . . . . . Parts Fried 1 | . . . 1 . Impact Corruptions 2 | . . . 1 1 Robots Melted . | . . . . . Combat Hostiles . | . . . . . Parts Melted 1 | . . . . 1 Heat Transferred 200 | . . . . 200 Parts Sabotaged . | . . . . . Parts Stolen . | . . . . . Parts Stripped . | . . . . . Power Chain Reactions . | . . . . . Alert | -11 -10 -10 -10 -8 ------- Run | Yrd Mat Min Sub Scr Maximum Alert Level . | . . . . . Low Security (%) 100 | 100 100 100 . . Level 1 . | . . . . . Level 2 . | . . . . . Level 3 . | . . . . . Level 4 . | . . . . . Level 5 . | . . . . . High Security . | . . . . . Max Security . | . . . . . Peak Influence 110 | . 110 23 . . Initial . | . . . . . Average 10 | . 15 . . . Influence Increases 420 | . 397 23 . . Destroy 0b10 Robot/C 260 | . 240 20 . . Destroy 0b10 Robot/NC 60 | . 60 . . . Destroy Leader 78 | . 78 . . . Allied During Kill 3 | . . 3 . . Successful Hack 15 | . 15 . . . Destroy Structure 4 | . 4 . . . Influence Decreases 420 | . 397 23 . . Time Decay 298 | . 275 23 . . Lost Part 20 | . 20 . . . Purge Threat 102 | . 102 . . . Squads Dispatched 3 | . 3 . . . Investigation 1 | . 1 . . . Extermination . | . . . . . Reinforcement 2 | . 2 . . . Assault . | . . . . . Garrison . | . . . . . Intercept . | . . . . . Searches Triggered . | . . . . . Construction Impeded . | . . . . . Haulers Reinforced . | . . . . . Active Scanning Responses . | . . . . . Cargo Convoy Interrupts . | . . . . . Stealth | -11 -10 -10 -10 -8 --------- Run | Yrd Mat Min Sub Scr Distress Signals 1 | . 1 . . . Communications Jammed . | . . . . . Distress Signals . | . . . . . Times Spotted 52 | . 28 2 3 19 Peak Tracking Total 7 | . 3 1 2 7 Tactical Retreats 6 | . 6 . . . ECM-based Alert Blocks 8 | . 8 . . . Traps | -11 -10 -10 -10 -8 ------- Run | Yrd Mat Min Sub Scr Traps Triggered 1 | . 1 . . . Indirectly . | . . . . . Trap Hack Attempts . | . . . . . Triggered . | . . . . . Disarmed . | . . . . . Reprogrammed . | . . . . . Reused . | . . . . . Traps Extracted . | . . . . . Installed . | . . . . . Triggered . | . . . . . Machines | -11 -10 -10 -10 -8 ---------- Run | Yrd Mat Min Sub Scr Machines Disabled . | . . . . . Max in Single Turn . | . . . . . Machines Repaired . | . . . . . Machines Dismantled . | . . . . . Machines Sabotaged . | . . . . . Overloaded Fab Kills . | . . . . . Hacking | -11 -10 -10 -10 -8 --------- Run | Yrd Mat Min Sub Scr Machines Accessed 10 | . 6 . . 4 Terminals 5 | . 5 . . . Fabricators . | . . . . . Repair Stations . | . . . . . Recycling Units 1 | . 1 . . . Scanalyzers . | . . . . . Garrison Access . | . . . . . Total Hacks 33 | . 16 . . 17 Successful 25 | . 8 . . 17 Failed 8 | . 8 . . . Catastrophic . | . . . . . Database Lockouts . | . . . . . Manual 16 | . 16 . . . Terminals 15 | . 15 . . . Fabricators . | . . . . . Repair Stations . | . . . . . Recycling Units 1 | . 1 . . . Scanalyzers . | . . . . . Garrison Access . | . . . . . Terminal Hacks 19 | . 2 . . 17 Record 17 | . . . . 17 Branch Access Points 1 | . 1 . . . Unreport Threat 1 | . 1 . . . Fabricator Hacks . | . . . . . Repair Station Hacks . | . . . . . Recycling Unit Hacks 1 | . 1 . . . Report Inventory 1 | . 1 . . . Scanalyzer . | . . . . . Garrison Access Hacks . | . . . . . Unauthorized Hacks 5 | . 5 . . . Terminals 5 | . 5 . . . Assimilate 2 | . 2 . . . Botnet 2 | . 2 . . . Operators 1 | . 1 . . . Fabricators . | . . . . . Repair Stations . | . . . . . Recycling Units . | . . . . . Scanalyzers . | . . . . . Garrison Access . | . . . . . Data Cores Recovered . | . . . . . Used . | . . . . . Hacking Detections 5 | . 5 . . . Full Trace Events 2 | . 2 . . . Feedback Events . | . . . . . Feedback Blocked . | . . . . . Robot Schematics Acquired . | . . . . . Robots Built . | . . . . . Authchips . | . . . . . Time . | . . . . . Total Robot Build Rating . | . . . . . Part Schematics Acquired . | . . . . . Parts Built . | . . . . . Authchips . | . . . . . Time . | . . . . . Total Part Build Rating . | . . . . . Part Studies Acquired . | . . . . . Parts Repaired . | . . . . . Time . | . . . . . Parts Recycled . | . . . . . Recycled Matter . | . . . . . Retrieved Matter . | . . . . . Retrieved Components . | . . . . . Parts Scanalyzed . | . . . . . Part Schematics Acquired . | . . . . . Parts Damaged . | . . . . . Bothacking | -11 -10 -10 -10 -8 ------------ Run | Yrd Mat Min Sub Scr Used RIF Installer . | . . . . . Robots Hacked . | . . . . . Non-combat . | . . . . . Combat . | . . . . . Robot Hacks Applied . | . . . . . Relay Couplers Released . | . . . . . Fabnet Peak Effective % . | . . . . . Robots Rewired . | . . . . . Allies Hacked . | . . . . . Hacks Repelled . | . . . . . Allies | -11 -10 -10 -10 -8 -------- Run | Yrd Mat Min Sub Scr Total Allies 3 | . . 3 . . Largest Group 3 | . . 3 3 1 Highest-Rated Group 40 | . . 40 40 8 Highest-Rated Ally 16 | . . 16 16 8 Total Orders . | . . . . . Ally Attacks 47 | . . 5 31 11 Total Damage 429 | . . 25 325 79 Kills 4 | . . 1 3 . Allies Corrupted 1 | . . . 1 . Allies Melted 13 | . . . . 13 Intel | -11 -10 -10 -10 -8 ------- Run | Yrd Mat Min Sub Scr Active Infowar (turns) 529 | . 529 . . . ECM 529 | . 529 . . . Robot Analysis Total . | . . . . . Derelict Logs Recovered . | . . . . . Drone Launches . | . . . . . Drone Recoveries . | . . . . . Exploration | -11 -10 -10 -10 -8 ------------- Run | Yrd Mat Min Sub Scr Turns Passed 5064 | 87 1764 801 317 2095 Spaces Moved 1655 | 50 728 250 83 544 Core 22 | 22 . . . . Treads 1633 | 28 728 250 83 544 Legs . | . . . . . Wheels . | . . . . . Hover . | . . . . . Flight . | . . . . . Fastest Speed 50 | 50 160 320 320 320 Average Speed 259 | 155 191 320 320 322 Slowest Speed 480 | 250 480 320 320 480 Overloaded Moves . | . . . . . Propulsion Burnouts . | . . . . . Robots Hopped . | . . . . . Potential Cave-ins . | . . . . . Cave-ins Triggered . | . . . . . Exploration Rate (%) 35 | 4 95 32 6 39 Regions Visited 4 Branch Regions 3 Pre-discovered Areas . | . . . . . Known Exits Taken 1 | . 1 . . . Unknown Exits Taken 3 | 1 . 1 1 . Scrap Searched 5 | . . . . 5 Spaces Dug . | . . . . . Terrain Destroyed 1 | . . . . 1 Melee . | . . . . . Projectile 1 | . . . . 1 AOE . | . . . . . Terrain Rammed . | . . . . . Walls Destroyed . | . . . . . Machines Disabled . | . . . . . Actions | -11 -10 -10 -10 -8 --------- Run | Yrd Mat Min Sub Scr Total 2261 | 56 969 251 111 874 Wait 425 | . 124 . 9 292 Move 1651 | 49 727 249 82 544 Hop . | . . . . . Pick Up 28 | 1 16 . 1 10 Fast Attach 13 | 6 4 . 1 2 Attach 9 | . 5 . . 4 Detach 8 | . 5 . 1 2 Swap 1 | . 1 . . . Drop 7 | . 5 . . 2 Fire 103 | . 82 2 5 14 Melee 16 | . . . 12 4 Ram . | . . . . . Kick . | . . . . . Crush . | . . . . . Escape Stasis . | . . . . . Rewire . | . . . . . Trap . | . . . . . Miscellaneous . | . . . . . Route ------- -11/Scrapyard -10/Materials (discovered 5 exits: [*Mat x3] / *Min / [*Sub]) -10/Mines -10/Subcaves -8/Scraptown History --------- Turn | Location | Event 8 | -11/Scrapyard | Discovered new exit (range 15) 88 | -11/Scrapyard | Entered Materials 306 | -10/Materials | Build established: Mutant 336 | -10/Materials | Discovered new exit (range 15) 492 | -10/Materials | Discovered new exit (range 8) 871 | -10/Materials | Discovered new exit (range 9) 1175 | -10/Materials | Identified exit to Mines 1477 | -10/Materials | Discovered new exit (range 16) 1852 | -10/Materials | Entered Mines 1977 | -10/Mines | Assisted by bots powering up and referring to "LRC-V3" 2249 | -10/Mines | Assembled infested the area 2254 | -10/Mines | Assisted by a Guerilla fighting off Assembled 2480 | -10/Mines | Discovered new exit (range 9) 2653 | -10/Mines | Entered Subcaves 2653 | -10/Subcaves | Accompanied by 3 allies 2654 | -10/Subcaves | Approached by a straggling Scientist 2767 | -10/Subcaves | Shifting Twisted Machinery released Sub. Shrapnel Launcher 2820 | -10/Subcaves | Shifting Twisted Machinery released Sub. Power Source 2970 | -10/Subcaves | Entered Scraptown 2970 | -8/Scraptown | Accompanied by 1 ally 3156 | -8/Scraptown | Heard Great Nut preacher, LISTEN AND RECITE! 3529 | -8/Scraptown | Visited UFD Registry 3529 | -8/Scraptown | Registered with UFD as "Nukeforce" 3744 | -8/Scraptown | Visited DA-N13 Charitable Foundation 3760 | -8/Scraptown | Found DCF Scrap (31 items) 3915 | -8/Scraptown | Visited Derelict Rescue Squad 4062 | -8/Scraptown | Met Optimus 4062 | -8/Scraptown | Accepted into 0bPrime 4194 | -8/Scraptown | Visited Scrap Suit Storage 4271 | -8/Scraptown | Civil war broke out across Scraptown 4279 | -8/Scraptown | Core integrity fell below 50% 4323 | -8/Scraptown | Visited Abandonware Association 4371 | -8/Scraptown | Lost 6 allies 4437 | -8/Scraptown | Lost 5 allies 4517 | -8/Scraptown | Optimus destroyed in the chaos of civil war 4531 | -8/Scraptown | Lost 6 allies 4808 | -8/Scraptown | Visited Scrapoid Research Area 5059 | -8/Scraptown | Core integrity fell below 20% 5065 | -8/Scraptown | Destroyed by 5R-MKZ(j) with Overtuned Pulse Rifle Last Messages --------------- to repair Ovr. Titanium Leg. 05000_ GH-AWM(j) suffers critical hit (Burn). 05000_ GH-AWM(j) overheating. 05004_ GH-AWM(j) destroyed. 05005_ 7Q-DLU(j) destroyed. 05017_ E6-XRA(E) destroyed. 05028_ XR8>/|UCWRTQG,F1AV>4 05033_ YM-BXX(j) cannibalizes Ion Engine to repair Lgt. Deuterium Engine. 05041_ 9J-7LH(x) destroyed. 05042_ Bolt penetrates HK-L59(p). 05044_ YM-BXX(j) cannibalizes Ovr. Titanium Leg to repair Ovr. Titanium Leg. 05044_ Bolt penetrates HK-L59(p). 05047_ HK-L59(p) destroyed. 05054_ Penetrated by Bolt. 05058_ Bolt penetrates Machine. 05060_ Lgt. Ion Engine destroyed. 05061_ Slug penetrates 5R-MKZ(j). 05061_ Penetrated by Bolt. Map ----- +----------------------------------------------------+ | ????????????????????????#%!# #???????????? | | ?????????????????? ?????# %# #???????????? | | ??????????????????# ????# ## "#######???????????? | | ???????????????#### ##### ## ##???#####?????????? | | "????????????"""""" """"" "" "#???"""""?????????? | | ????????????[ "#?? " "" "#???????? | | ???????????!%= "#?? " "" "#???????? | | ?????????? =! "#?" "#???????? | | ???? ????? "##" """"#???????? | | ????? !% " "#???????? | | """""""????????"""""""""" = "##" " "" "#???????? | | "?"""""???????????"""""""!%=% "#?" " "" ?????????? | | ##### ######??????####"" = #?? """"??????????? | | ##????????#""[ !! ##########????????? | | X"#????????#" [!=%["## #"""""#????????? | | "" "" ##????????#""![!/="## !! ! #????????? | | "" "" X"#??????###!"!%/%! ## ##"#?????? | | " " #########!! %!*[=! ## X" #?????? | | "" =%!![[!%*!= #?????? | | "" ==%%!!!*!%!## #?????? | | " = " ######### #*%=[%[[ ## !!!! !#?????? | | [""%* "" ""#??????###! !=!j!"## #"""""#""#?????? | | % !" "=[ ##???????#;" =%*!*"#############?????? | | %[%! * X"#??????# #"[!%![% ##= """ "?????? | | =% ##????## ##""%!=!="##*! " "" ""#????? | | ##"## ############"###""@=%% [##!== ""! "#????? | | """"""" """""""""" "" ""=!!!!!%#!%%[*%!%[ ""#????? | | """""""""""!"!"" !=!!%! [ !%!%=%*%[== "#????? | | !=%! ! %[!%=!=*!%=!%!* !!##== * #????? | | !% = =%!!==%*[=/!![!![[* = !=##= """ #????? | | !!= *=*%[===!%![!*=!% =%!= ## """""??????? | | %!= ! [!!!! !=!%=!!%=!!%!*=## """ """ ??????? | | %! [*!!![%*!!=!%=% %*j=%!%!![##########???????? | | """""""["*%*"["""=%%! E!*!"j%*%##????????????????? | | #########=#%########[%######!%=;#????????????????? | | ???# !==!=#??# !![!!#??#!h!##????????????????? | | ?# [%*!%!]#??# =[%! #??#%*=#?????????????????? | | #==!!![[[#??# %*== #??#!=!=#????????????????? | | """#!%![/[%*#??#" = "#??#*=!##????????????????? | | #### =*#"[==#??#" %= "??#!!%#?????????????????? | | ???# "#***#??#"" !%=""#?#=![#?????????????????? | | ???#"########??#"%* "##?#[%[!?????????????????? | | ???##??????????# "= ""#???%[==?????????????????? | | ???????????????#" "????*=! ????????????????? | | ???????????????#" && "????% ! ????????????????? | | ???????????????#""""""""????! / ?????????????????? | | ????????????????#######??????????????????????????? | | ?????????????????????????????????????????????????? | | ?????????????????????????????????????????????????? | | ?????????????????????????????????????????????????? | +----------------------------------------------------+ Best States ------------- Heat Dissipation 25 Energy Generation 10 Energy Capacity 250 Matter Stores 300 Matter Capacity 300 Sight Range 16 Terrain Scan Density 10 ECM Strength 1 Evasion (%) 50 Recoil Reduction 2 Offensive Hacking 10 Item Schematics ----------------- None Robot Schematics ------------------ None Fabricated ------------ Nothing Repaired ---------- Nothing Studied --------- None Alien Tech Used ----------------- None Achievements -------------- None Challenges ------------ None Game ------ Seed GhostPulsarSubcomponent Manual? 0 Play Time 00:30:06 Cumulative 34.8 hours Start 2026.07.07 @ 22:16:14 End 2026.07.07 @ 22:46:09 Sessions 1 Manual Loads 0 Difficulty Rogue Special Mode None Game No. 95 Rogue 95 Adventurer 0 Explorer 0 Win Type - Total 0 Types 0/0/0/0/0/0/0/0/0/0 Lore% 19 Gallery% 28 Achievement% 23 Wizard Run 0 Options --------- Layout 1 ASCII 0 Keyboard 1 Movement Vi Keybinds 0 Fullscreen 1 Font 24/Smallcaps Map View 50x35 Zoom Use 0% Tactical HUD 1 Map Filters NONE Filters NONE Steam 1 RUN: 03c15c5e-2642-43bf-aaad-cdf2c7319dd0